Cogmind - Beta 15 @@@ ROGUE MODE // 2025.07.08 @ 21:10:38 Player: Juan Result: Destroyed by IS-71K(R) with Subdweller Laser Performance ------------- Evolutions (0) 0 Regions Visited (3) 600 Robots Destroyed (11) 55 Value Destroyed (194) 194 Prototype IDs (0) 0 Alien Tech Used (0) 0 Bonus (0) 0 TOTAL SCORE: 849 Bonus ------- None Cogmind --------- Core Integrity 0/250 Matter 300/300 Energy 100/100 System Corruption 0% Temperature Cool (6) Movement Core (200) Ox3 Location -10/Subcaves Parts ------- > --- POWER (1) -------- (None) > --- PROPULSION (2) --- (None) > --- UTILITY (2) ------ Small Storage Unit Small Storage Unit > --- WEAPON (2) ------- (None) > --- INVENTORY (8) ---- Light Treads Light Treads Aluminum Leg Hardened Light Armor Plating Small Laser Assault Rifle Grenade Launcher Peak State ------------ > --- POWER ------------ Light Ion Engine > --- PROPULSION ------- Aluminum Leg Aluminum Leg > --- UTILITY ---------- Small Storage Unit Small Storage Unit > --- WEAPON ----------- Beamcaster Assault Rifle > --- INVENTORY -------- Light Treads Light Treads Aluminum Leg Hardened Light Armor Plating Small Laser Assault Rifle Grenade Launcher [Rating: 11] Favorites ----------- Power Light Ion Engine Engine Light Ion Engine Propulsion Aluminum Leg Leg Aluminum Leg Utility Small Storage Unit Storage Small Storage Unit Weapon Assault Rifle Energy Gun Beamcaster Ballistic Gun Assault Rifle Build | -11 -10 -10 -10 ------- Run | Yrd Mat Min Sub Slots Evolved . | . . . . Power . | . . . . Propulsion . | . . . . Utility . | . . . . Weapon . | . . . . Parts Attached 10 | 6 2 1 1 Power 2 | 1 . . 1 Engine 2 | 1 . . 1 Core . | . . . . Reactor . | . . . . Propulsion 2 | 2 . . . Treads . | . . . . Leg 2 | 2 . . . Wheel . | . . . . Hover . | . . . . Flight . | . . . . Utility 3 | 1 2 . . Device . | . . . . Storage 3 | 1 2 . . Processor . | . . . . Hackware . | . . . . Protection . | . . . . Artifact . | . . . . Weapon 3 | 2 . 1 . Energy Gun 1 | . . 1 . Energy Cannon . | . . . . Ballistic Gun 2 | 2 . . . Ballistic Cannon . | . . . . Launcher . | . . . . Special Weapon . | . . . . Impact Weapon . | . . . . Slashing Weapon . | . . . . Piercing Weapon . | . . . . Special Melee Weapon . | . . . . Unidentified Prototypes . | . . . . Parts Lost 6 | . . 1 5 Power 2 | . . 1 1 Propulsion 2 | . . . 2 Utility . | . . . . Weapon 2 | . . . 2 Highest Loss Streak 5 | . . 1 5 To Critical Strikes . | . . . . Average Backups 7 | 4 7 8 7 Power . | . 1 1 . Propulsion 3 | 2 4 3 3 Utility . | . . 1 1 Weapon 2 | 1 2 3 3 Tool/Special . | . . . . Unused Backups 9 | . 2 . 7 Power . | . . . . Propulsion 5 | . 2 . 3 Utility 1 | . . . 1 Weapon 3 | . . . 3 Tool/Special . | . . . . Average Slot Usage (%) 90 | . 96 86 87 Engine 6 | . 14 1 5 Leg 27 | . 28 28 26 Storage 26 | . 24 28 28 Energy Gun 4 | . . 4 14 Ballistic Gun 23 | . 28 23 13 Peak Build Rating 11 | 6 7 10 11 Average Rating 7 | 3 6 7 9 On Entrance 5 | . 6 7 10 Naked Turns . | . . . . Heaviest Build 20 | 12 17 17 20 Greatest Support 20 | 20 20 20 20 Greatest Overweight (x) 5 | 1 . . 5 Average Overweight (x) . | . . . . Largest Inventory Capacity 15 | 8 15 8 8 Average Capacity 7 | 7 8 8 8 Most Carried 8 | 8 8 8 8 Average Carried 7 | 4 7 8 7 Final Capacity 8 | 8 8 8 8 Final Carried 8 | 6 8 8 7 Class Distribution -------------------- 100% | Mutant Dominant Class ---------------- Mutant | -10/Materials Mutant | -10/Mines Mutant | -10/Subcaves Resources | -11 -10 -10 -10 ----------- Run | Yrd Mat Min Sub Matter Collected 467 | 257 144 54 12 Remotely . | . . . . Salvage Created 213 | . 175 38 . Parts 24 | . 19 5 . Haulers Intercepted . | . . . . Recyclers Shooed . | . . . . Parts Field Recycled . | . . . . Retrieved Matter . | . . . . Parts Self-Destructed . | . . . . Prevented . | . . . . Kills | -11 -10 -10 -10 ------- Run | Yrd Mat Min Sub Combat Hostiles Destroyed 9 | . 6 3 . Guns 9 | . 6 3 . Classes Destroyed 4 | . 4 . . Operator 1 | . 1 . . Watcher 1 | . 1 . . Swarmer 6 | . 3 3 . Grunt 3 | . 3 . . Best Kill Streak 5 | . 5 3 . Combat Bots Only 3 | . 3 3 . Max Kills in Single Turn 1 | . 1 1 . Gunslinging . | . . . . Exploded . | . . . . Melee . | . . . . Uniques/NPCs Destroyed . | . . . . Combat | -11 -10 -10 -10 -------- Run | Yrd Mat Min Sub Hostile Shots Fired 105 | . 23 26 56 Missed 36 | . 8 10 18 Hits 69 | . 15 16 38 Projectile 69 | . 15 16 38 Critical Strikes 1 | . . . 1 Damage Taken 1030 | . 133 134 763 Core 259 | . 12 25 222 Absorbed by Shields . | . . . . Core Remaining (%) 100 | 100 . . . Volleys Fired 26 | . 17 8 1 Largest 2 | . 2 2 2 Hottest 95 | . 40 40 95 Shots Fired 52 | . 34 16 2 Gun 52 | . 34 16 2 Cannon . | . . . . Launcher . | . . . . Special . | . . . . Kinetic 51 | . 34 16 1 Thermal 1 | . . . 1 Explosive . | . . . . Electromagnetic . | . . . . Robot Hit Streak 5 | . 5 1 3 Robot Miss Streak 5 | . 3 5 . Penetration Max . | . . . . Secondary Targets . | . . . . Shots Hit Robots 25 | . 19 4 2 Core Hits 14 | . 11 3 . Critical Kills . | . . . . Critical Parts Destroyed . | . . . . Critical Strikes . | . . . . Melee Attacks . | . . . . Impact . | . . . . Slashing . | . . . . Piercing . | . . . . Sneak Attacks . | . . . . Combat Hostiles . | . . . . Follow-up Attacks . | . . . . Damage Inflicted 328 | . 241 50 37 Guns 328 | . 241 50 37 Cannons . | . . . . Explosions . | . . . . Melee . | . . . . Ramming . | . . . . Kinetic 306 | . 241 50 15 Thermal 22 | . . . 22 Explosive . | . . . . Electromagnetic . | . . . . Impact . | . . . . Slashing . | . . . . Piercing . | . . . . Highest Corruption . | . . . . Average Corruption . | . . . . Corruption Purged . | . . . . Corruption Blocked . | . . . . Overload Shots . | . . . . Overflow Damage . | . . . . Projectiles . | . . . . Explosions . | . . . . Melee . | . . . . Knockbacks . | . . . . Impact . | . . . . Kinetic . | . . . . Secondary . | . . . . Self-Inflicted Damage . | . . . . Shots . | . . . . Rammed . | . . . . Targets Rammed . | . . . . Kicked . | . . . . Crushed . | . . . . Highest Temperature . | . . . . Average Temperature . | . . . . Received Heat Transfer 183 | . 24 21 138 Siege Activations . | . . . . Martial Activations . | . . . . Shielding Activations . | . . . . Robots Disrupted . | . . . . Combat Hostiles . | . . . . Robots Corrupted . | . . . . Combat Hostiles . | . . . . Parts Fried . | . . . . Impact Corruptions . | . . . . Robots Melted . | . . . . Combat Hostiles . | . . . . Parts Melted . | . . . . Heat Transferred 37 | . . . 37 Parts Sabotaged . | . . . . Parts Stolen . | . . . . Parts Stripped . | . . . . Power Chain Reactions . | . . . . Alert | -11 -10 -10 -10 ------- Run | Yrd Mat Min Sub Maximum Alert Level . | . . . . Low Security (%) 100 | 100 100 100 . Level 1 . | . . . . Level 2 . | . . . . Level 3 . | . . . . Level 4 . | . . . . Level 5 . | . . . . High Security . | . . . . Max Security . | . . . . Peak Influence 127 | . 127 50 . Initial 20 | . . 20 . Average 22 | . 51 6 . Influence Increases 298 | . 198 100 . Destroy 0b10 Robot/C 180 | . 120 60 . Destroy 0b10 Robot/NC 10 | . 10 . . Destroy Leader 42 | . 32 10 . Successful Hack 6 | . 6 . . Lose Combat Pursuer 60 | . 30 30 . Influence Decreases 298 | . 145 131 22 Entered New Map 45 | . . 33 12 Time Decay 243 | . 145 88 10 Lost Part 10 | . . 10 . Squads Dispatched 3 | . 3 . . Investigation . | . . . . Extermination . | . . . . Reinforcement 3 | . 3 . . Assault . | . . . . Garrison . | . . . . Intercept . | . . . . Searches Triggered . | . . . . Construction Impeded . | . . . . Haulers Reinforced . | . . . . Active Scanning Responses . | . . . . Cargo Convoy Interrupts . | . . . . Stealth | -11 -10 -10 -10 --------- Run | Yrd Mat Min Sub Distress Signals 2 | . 2 . . Communications Jammed . | . . . . Distress Signals . | . . . . Times Spotted 29 | . 11 5 13 Peak Tracking Total 10 | . 4 2 10 Tactical Retreats 3 | . 1 1 1 Traps | -11 -10 -10 -10 ------- Run | Yrd Mat Min Sub Traps Triggered . | . . . . Indirectly . | . . . . Trap Hack Attempts . | . . . . Triggered . | . . . . Disarmed . | . . . . Reprogrammed . | . . . . Reused . | . . . . Traps Extracted . | . . . . Installed . | . . . . Triggered . | . . . . Machines | -11 -10 -10 -10 ---------- Run | Yrd Mat Min Sub Machines Disabled . | . . . . Max in Single Turn . | . . . . Machines Repaired . | . . . . Machines Dismantled . | . . . . Machines Sabotaged . | . . . . Overloaded Fab Kills . | . . . . Hacking | -11 -10 -10 -10 --------- Run | Yrd Mat Min Sub Machines Accessed 3 | . 2 1 . Terminals 2 | . 2 . . Fabricators . | . . . . Repair Stations . | . . . . Recycling Units . | . . . . Scanalyzers . | . . . . Garrison Access . | . . . . Total Hacks 5 | . 4 1 . Successful 3 | . 2 1 . Failed 2 | . 2 . . Catastrophic 1 | . 1 . . Database Lockouts . | . . . . Manual 4 | . 4 . . Terminals 4 | . 4 . . Fabricators . | . . . . Repair Stations . | . . . . Recycling Units . | . . . . Scanalyzers . | . . . . Garrison Access . | . . . . Terminal Hacks 3 | . 2 1 . Robot Analysis 2 | . 2 . . Open Door 1 | . . 1 . Fabricator Hacks . | . . . . Repair Station Hacks . | . . . . Recycling Unit Hacks . | . . . . Scanalyzer . | . . . . Garrison Access Hacks . | . . . . Unauthorized Hacks . | . . . . Terminals . | . . . . Fabricators . | . . . . Repair Stations . | . . . . Recycling Units . | . . . . Scanalyzers . | . . . . Garrison Access . | . . . . Data Cores Recovered . | . . . . Used . | . . . . Hacking Detections . | . . . . Full Trace Events . | . . . . Feedback Events . | . . . . Feedback Blocked . | . . . . Robot Schematics Acquired . | . . . . Robots Built . | . . . . Authchips . | . . . . Time . | . . . . Total Robot Build Rating . | . . . . Part Schematics Acquired . | . . . . Parts Built . | . . . . Authchips . | . . . . Time . | . . . . Total Part Build Rating . | . . . . Parts Repaired . | . . . . Time . | . . . . Parts Recycled . | . . . . Recycled Matter . | . . . . Retrieved Matter . | . . . . Retrieved Components . | . . . . Parts Scanalyzed . | . . . . Part Schematics Acquired . | . . . . Parts Damaged . | . . . . Bothacking | -11 -10 -10 -10 ------------ Run | Yrd Mat Min Sub Used RIF Installer . | . . . . Robots Hacked . | . . . . Non-combat . | . . . . Combat . | . . . . Robot Hacks Applied . | . . . . Relay Couplers Released . | . . . . Fabnet Peak Effective % . | . . . . Robots Rewired . | . . . . Allies Hacked . | . . . . Hacks Repelled . | . . . . Allies | -11 -10 -10 -10 -------- Run | Yrd Mat Min Sub Total Allies . | . . . . Largest Group . | . . . . Highest-Rated Group . | . . . . Highest-Rated Ally . | . . . . Total Orders . | . . . . Ally Attacks . | . . . . Total Damage . | . . . . Kills . | . . . . Allies Corrupted . | . . . . Allies Melted . | . . . . Intel | -11 -10 -10 -10 ------- Run | Yrd Mat Min Sub Active Infowar (turns) . | . . . . Robot Analysis Total 2 | . 2 . . Derelict Logs Recovered 1 | . . 1 . Drone Launches . | . . . . Drone Recoveries . | . . . . Exploration | -11 -10 -10 -10 ------------- Run | Yrd Mat Min Sub Turns Passed 1155 | 68 366 588 133 Spaces Moved 827 | 43 225 456 103 Core 10 | 5 . . 5 Treads . | . . . . Legs 817 | 38 225 456 98 Wheels . | . . . . Hover . | . . . . Flight . | . . . . Fastest Speed 50 | 50 120 120 120 Average Speed 120 | 120 120 120 126 Slowest Speed 300 | 190 120 120 300 Overloaded Moves . | . . . . Propulsion Burnouts . | . . . . Robots Hopped . | . . . . Potential Cave-ins . | . . . . Cave-ins Triggered . | . . . . Exploration Rate (%) 29 | 4 26 78 9 Regions Visited 3 Branch Regions 2 Pre-discovered Areas . | . . . . Known Exits Taken . | . . . . Unknown Exits Taken 3 | 1 1 1 . Scrap Searched 1 | . . 1 . Spaces Dug . | . . . . Terrain Destroyed . | . . . . Melee . | . . . . Projectile . | . . . . AOE . | . . . . Terrain Rammed . | . . . . Walls Destroyed . | . . . . Machines Disabled . | . . . . Actions | -11 -10 -10 -10 --------- Run | Yrd Mat Min Sub Total 932 | 58 288 481 105 Wait 43 | . 34 9 . Move 824 | 42 224 455 103 Hop . | . . . . Pick Up 14 | 10 4 . . Fast Attach 5 | 2 2 1 . Attach 6 | 4 1 . 1 Detach 1 | . 1 . . Swap 1 | . 1 . . Drop 5 | . 4 1 . Fire 26 | . 17 8 1 Melee . | . . . . Ram . | . . . . Kick . | . . . . Crush . | . . . . Escape Stasis . | . . . . Rewire 7 | . . 7 . Trap . | . . . . Miscellaneous . | . . . . Route ------- -11/Scrapyard -10/Materials -10/Mines (discovered 2 exits: [*Mat] / [*Sub]) -10/Subcaves History --------- Turn | Location | Event 40 | -11/Scrapyard | Discovered new exit (range 15) 69 | -11/Scrapyard | Entered Materials 163 | -10/Materials | Discovered new exit (range 15) 313 | -10/Materials | Build established: Mutant 435 | -10/Materials | Entered Mines 533 | -10/Mines | Discovered new exit (range 5) 801 | -10/Mines | Discovered new exit (range 12) 830 | -10/Mines | Met a Derelict who couldn't figure out how to use a Trap Extractor 875 | -10/Mines | Learned location of 1 exit from Materials 1023 | -10/Mines | Entered Subcaves 1024 | -10/Subcaves | Approached by a straggling Scientist 1077 | -10/Subcaves | Ambushed by swarm of Subdwellers 1141 | -10/Subcaves | Core integrity fell below 50% 1155 | -10/Subcaves | Core integrity fell below 20% 1156 | -10/Subcaves | Destroyed by IS-71K(R) with Subdweller Laser Last Messages --------------- A mess of Twisted Machinery falls from the cavern ceiling. JA-9V8(R) comes tumbling into view. 01079_ 7U-92H(O) collects matter. 01080_ 3Y-B8R(R) emerges from the Twisted Machinery. 01080_ H9-A2B(R) emerges from the Twisted Machinery. 01081_ SM-PXJ(R) emerges from the Twisted Machinery. 01082_ 29-ZKW(R) angrily emerges from the Twisted Machinery. 01082_ R3-5KN(R) angrily emerges from the Twisted Machinery. 01104_ Acquired 7 matter. 01120_ Acquired 5 matter. 01141_ Tech Extrapolator violently self-destructs. 01141_ 7U-92H(O) collects matter. 01144_ Aluminum Leg destroyed. 01145_ Assault Rifle destroyed. 01146_ Aluminum Leg destroyed. 01147_ Lgt. Ion Engine destroyed. 01148_ R3-5KN(R) destroyed. 01150_ 7U-92H(O) collects matter. 01151_ Beamcaster destroyed. 01155_ 7U-92H(O) puts together Battle Cannon. Map ----- +----------------------------------------------------+ | ?????????????????????????????????????????????????? | | ?????????????????????????????????????????????????? | | ?????????????????????????????????????????????????? | | ????#######????????????????########??????????????? | | #### ????????????????## ##???####??##### | | # #??????????????????## ##?## ### | | #??????????????????## ## ### % | | #??????????????????# ### # | | #??????????????????# ## % ##### | | # ##?????????????????## ##???? | | # #### #?????###?## ### ##????? | | #????????# ## #######?## ##?????? | | # #######?????????# #????????###??????? | | ### ##??????????????## ##?????????????????? | | ??## ###??##?????????### #??????????????????? | | ???# " ### #??????????## ##?????????????????? | | #??##"" # #??????????## R #?????????????????? | | "???###"# ##?????????## R #####?????????????????? | | ????####%##???????## ##?????????????????????? | | ???????## #??????## #??????????????????????? | | ????????# ##????## #??????????????????????? | | ????????## ###### #?##??????#????????????? | | "? ????????#=%%##% & ## #### ##???????????? | | ???????????#"=%!!R RO& #???????????? | | ???????????##%%! ! #???????????? | | ????????????## ; @ % % #???????????? | | ?????????????##### ## ##???????????? | | ????????????????# #? ##????????????? | | ???????????????# R ! #? #?????????????? | | ??????????????# #?? #????????????? | | ??????????????# #### ##??? #???????????? | | ??????????????## ##??#####????? #???????????? | | ???????????????# #?????????????? ???????????? | | ???????????????## ???????????????? ????????????? | | ???????????????? ??????????????????????????????? | | ???????????????# ??????????????????????????????? | | ???????????????? ??????????????????????????????? | | ????????????????# ??????????????????????????????? | | ????????????????? ??????????????????????????????? | | ????????????????? ??????????????????????????????? | | ?????????????????????????????????????????????????? | | ?????????????????????????????????????????????????? | | ?????????????????????????????????????????????????? | | ?????????????????????????????????????????????????? | | ?????????????????????????????????????????????????? | | ?????????????????????????????????????????????????? | | ?????????????????????????????????????????????????? | | ?????????????????????????????????????????????????? | | ?????????????????????????????????????????????????? | | ?????????????????????????????????????????????????? | +----------------------------------------------------+ Best States ------------- Heat Dissipation 25 Energy Generation 10 Energy Capacity 125 Matter Stores 300 Matter Capacity 300 Sight Range 16 Terrain Scan Density 10 Evasion (%) 55 Item Schematics ----------------- None Robot Schematics ------------------ None Fabricated ------------ Nothing Repaired ---------- Nothing Alien Tech Used ----------------- None Achievements -------------- None Challenges ------------ None Game ------ Seed TerrabombHelicalMultirail Manual? 0 Play Time 00:17:02 Cumulative 18.7 hours Start 2025.07.08 @ 20:50:36 End 2025.07.08 @ 21:10:38 Sessions 1 Manual Loads 0 Difficulty Rogue Special Mode None Game No. 22 Rogue 22 Adventurer 0 Explorer 0 Win Type - Total 0 Types 0/0/0/0/0/0/0/0/0/0 Lore% 10 Gallery% 17 Achievement% 16 Wizard Run 0 Options --------- Layout 0 ASCII 0 Keyboard 1 Movement Vi Keybinds 0 Fullscreen 2 Font 24/X11 Map View 76x50 Zoom Use 0% Tactical HUD 1 Map Filters NONE Filters NONE Steam 1 RUN: 620c30ce-cc2f-422a-a2c2-3fc608940509